bitfinex-derivatives/quotes_SOLF0:USTF0_20250624
["timestamp","ask_amount","ask_price","bid_price","bid_amount"]
[1750767896816,5.7313247,144.01,144.0,6.94]
[1750767897516,5.7313247,144.01,143.99,6.9405]
[1750767897716,36.12,144.03,143.99,6.9405]
[1750767898026,15.60023874,144.02,143.99,6.9405]
[1750767898223,5.73160622,144.01,143.99,6.9405]
[1750767898524,12.67200622,144.0,143.95,3.47138475]
[1750767898722,6.9404,144.0,143.95,3.47138475]
[1750767898917,6.9404,144.0,143.97,6.9412]
[1750767900313,6.9406,143.99,143.96,6.9416]
[1750767900720,6.9406,143.99,143.95,3.47138475]
[1750767900920,6.941,143.98,143.96,6.9416]
[1750767902530,6.9408,143.99,143.96,6.9416]
[1750767904728,6.9408,143.99,143.97,6.9414]
[1750767905537,6.9403,144.0,143.95,3.47138475]
[1750767906236,6.9403,144.0,143.98,6.9409]
[1750767907333,6.9403,144.0,143.97,6.9412]
[1750767908534,6.9403,144.0,143.98,6.9409]
[1750767909637,6.9405,143.99,143.97,6.9413]
[1750767910135,6.9418,143.97,143.95,6.9424]
[1750767910735,36.12,143.99,143.94,6.9427]
[1750767910929,8.49390518,143.98,143.94,6.9427]
[1750767911130,36.12,143.99,143.94,6.9427]
[1750767911429,6.9419,143.97,143.94,6.9427]
[1750767912029,6.9426,143.95,143.93,6.9432]
[1750767912250,14.18664768,143.98,143.92,2.4117]
[1750767912431,13.47277464,143.97,143.92,2.4117]
[1750767912725,6.9425,143.95,143.92,9.3553]
[1750767914331,6.9425,143.95,143.93,6.9432]
[1750767914537,6.9425,143.95,143.92,2.4117]
[1750767914837,6.9425,143.95,143.92,9.3553]
[1750767915343,6.943,143.94,143.92,9.3553]
[1750767917727,6.9435,143.93,143.91,6.9441]
[1750767917935,36.06,143.95,143.88,38.3914]
[1750767918140,36.06,143.95,143.88,41.86278475]
[1750767918342,36.06,143.95,143.9,6.9448]
[1750767918844,6.9438,143.93,143.9,6.9448]
[1750767919843,6.9439,143.92,143.9,6.9448]
[1750767920141,6.9439,143.92,143.89,6.9451]
[1750767920338,6.9431,143.94,143.89,3.47138475]
[1750767920935,36.06,143.95,143.89,3.47138475]
[1750767921342,43.0025,143.95,143.92,6.9436]
[1750767922440,6.943,143.94,143.92,6.9436]
[1750767923139,6.943,143.94,143.88,38.3914]
[1750767923339,6.943,143.94,143.89,3.47138475]
[1750767923539,6.943,143.94,143.91,6.9443]
[1750767924248,36.06,143.95,143.9,6.9447]
[1750767924845,6.9432,143.94,143.9,6.9447]
[1750767927143,6.9432,143.94,143.88,41.86278475]
[1750767927354,43.0027,143.95,143.9,3.47138475]
[1750767927746,43.0027,143.95,143.92,6.9436]
[1750767928137,6.943,143.94,143.92,6.9436]
[1750767928344,6.943,143.94,143.91,6.9441]
[1750767930153,36.06,143.95,143.88,38.3914]
[1750767930350,3.47138475,143.94,143.88,38.3914]
[1750767930744,6.9441,143.92,143.9,6.9447]
[1750767931763,3.47138475,143.94,143.89,6.9451]
[1750767931945,3.47138475,143.94,143.88,2.3314]
[1750767932255,3.47138475,143.94,143.89,6.9451]
[1750767932554,6.9446,143.91,143.89,6.9451]
[1750767933057,36.06,143.95,143.88,2.3314]
[1750767933250,3.47138475,143.94,143.87,8.08288475]
[1750767933446,3.47138475,143.94,143.87,6.9461]
[1750767933651,6.9452,143.9,143.87,6.9461]
[1750767936456,6.9454,143.89,143.87,6.9461]
[1750767936958,6.9461,143.88,143.86,6.9465]
[1750767937153,36.06,143.91,143.84,7.0533]
[1750767937550,36.06,143.91,143.85,6.947]
[1750767938152,6.9463,143.87,143.84,14.0008]
[1750767938458,3.47138475,143.9,143.84,7.0533]
[1750767938653,6.9462,143.88,143.84,7.0533]
[1750767938957,6.9462,143.88,143.85,6.947]
[1750767939456,6.9462,143.88,143.84,7.0533]
[1750767939660,6.9456,143.89,143.84,7.0533]
[1750767939855,36.06,143.91,143.85,3.47138475]
[1750767940258,6.9456,143.89,143.85,3.47138475]
[1750767940558,6.9456,143.89,143.86,6.9465]
[1750767940755,6.9456,143.89,143.85,3.47138475]
[1750767940948,6.9456,143.89,143.86,6.9467]
[1750767942861,6.9456,143.89,143.87,6.9463]
[1750767943362,6.9451,143.9,143.88,6.9458]
[1750767943756,36.06,143.91,143.88,6.9458]
[1750767944062,6.9451,143.9,143.87,6.946]
[1750767944556,39.53138475,143.91,143.86,6.9464]
[1750767944771,39.53138475,143.91,143.84,10.52468475]
[1750767945651,6.9468,143.87,143.84,17.47218475]
[1750767945855,39.53138475,143.91,143.84,14.0008]
[1750767946256,6.9468,143.86,143.84,14.0008]
[1750767946760,39.53138475,143.91,143.84,14.0008]
[1750767946964,6.9466,143.87,143.85,6.9472]
[1750767947870,36.06,143.91,143.84,7.0533]
[1750767948067,36.06,143.91,143.84,10.52468475]
[1750767948358,6.9462,143.88,143.85,6.947]
[1750767948566,36.06,143.91,143.85,6.947]
[1750767949165,6.9464,143.87,143.85,6.947]
[1750767949973,6.9461,143.88,143.86,6.9468]
[1750767951065,6.9461,143.88,143.85,6.947]
[1750767951365,6.9461,143.88,143.84,10.52468475]
[1750767951551,6.9455,143.89,143.87,6.9463]
[1750767951756,36.06,143.91,143.87,6.9463]
[1750767952159,6.9452,143.9,143.87,6.9463]
[1750767952466,36.06,143.91,143.87,6.9463]
[1750767952863,6.9453,143.89,143.87,6.9463]
[1750767954960,6.9451,143.9,143.87,6.9463]
[1750767956364,6.9453,143.89,143.87,6.9463]
[1750767958371,3.47138475,143.9,143.85,6.947]
[1750767959364,36.06,143.91,143.86,6.9467]
[1750767960063,8.36768197,143.9,143.85,6.947]
[1750767960263,36.06,143.91,143.84,4.729]
[1750767960463,8.36823295,143.9,143.84,4.729]
[1750767960768,6.9468,143.86,143.84,11.6765]
[1750767960961,6.9468,143.86,143.84,6.9475]
[1750767961356,5.45905653,143.89,143.83,6.948]
[1750767961562,3.47138475,143.9,143.82,41.83988475]
[1750767962275,6.9461,143.88,143.85,6.947]
[1750767962461,36.06,143.91,143.85,6.947]
[1750767962663,8.37107383,143.9,143.85,6.947]
[1750767962870,6.9461,143.88,143.85,6.947]
[1750767963069,3.47138475,143.89,143.82,38.3685]
[1750767963368,6.9463,143.87,143.82,38.3685]
[1750767963572,36.06,143.91,143.85,3.47138475]
[1750767963775,8.37424996,143.9,143.85,3.47138475]
[1750767964072,6.9459,143.88,143.85,3.47138475]
[1750767964866,6.9455,143.89,143.86,6.9465]
[1750767965065,6.9455,143.89,143.85,3.47138475]
[1750767965371,6.9455,143.89,143.86,6.9464]
[1750767965974,36.06,143.91,143.85,3.47138475]
[1750767966174,36.06,143.91,143.87,3.47138475]
[1750767966366,38.93308862,143.94,143.87,3.47138475]
[1750767966562,12.40574591,143.93,143.87,3.47138475]
[1750767966770,36.02,143.94,143.89,3.47138475]
[1750767967061,8.37674423,143.93,143.89,3.47138475]
[1750767967278,6.9438,143.93,143.89,3.47138475]
[1750767967466,36.02,143.94,143.89,3.47138475]
[1750767967669,36.02,143.94,143.92,6.9435]
[1750767968077,36.02,143.97,143.91,3.47138475]
[1750767968274,6.9432,143.94,143.91,10.41548475]
[1750767968875,6.9427,143.95,143.92,6.9438]
[1750767970576,6.943,143.94,143.9,3.47138475]
[1750767970776,36.02,143.97,143.92,3.47138475]
[1750767971080,36.02,143.97,143.94,6.9429]
[1750767971584,36.02,143.97,143.94,6.9426]
[1750767971778,36.02,143.97,143.92,3.47138475]
[1750767972077,6.9412,143.98,143.94,3.47138475]
[1750767972294,36.0,144.01,143.94,3.47138475]
[1750767972471,5.46409584,144.0,143.96,3.47138475]
[1750767972677,36.0,144.01,143.96,3.47138475]
[1750767973074,6.9401,144.0,143.96,3.47138475]
[1750767973286,6.9401,144.0,143.97,6.9411]
[1750767973977,42.9397,144.01,143.98,6.9409]
[1750767974184,42.9397,144.01,143.96,3.47138475]
[1750767974480,42.9397,144.01,143.97,6.9412]
[1750767974682,36.0,144.04,143.97,6.9412]
[1750767974882,5.49633228,144.03,143.97,6.9412]
[1750767975191,6.9398,144.01,143.97,6.9412]
[1750767975680,6.9398,144.01,143.98,6.9408]
[1750767976476,6.9392,144.02,143.99,6.9404]
[1750767976674,39.47138475,144.04,143.98,3.47138475]
[1750767976876,36.0,144.04,143.98,3.47138475]
[1750767977085,6.9384,144.04,143.98,39.47138475]
[1750767977385,39.47138475,144.06,143.98,39.47138475]
[1750767977780,6.9383,144.04,144.0,6.9398]
[1750767978979,36.0,144.06,144.0,6.9398]
[1750767979384,6.9385,144.04,144.01,6.9395]
[1750767979585,6.9385,144.04,143.98,39.47138475]
[1750767980281,6.9385,144.04,144.0,6.9398]
[1750767980689,6.9386,144.03,144.0,6.9398]
[1750767981877,6.9383,144.04,144.0,6.9398]
[1750767982787,6.9387,144.03,144.0,6.9398]
[1750767983288,36.0,144.06,144.0,3.47138475]
[1750767984390,6.9383,144.04,144.01,6.9393]
[1750767984886,6.9378,144.05,144.0,3.47138475]
[1750767985586,6.9382,144.04,144.01,6.9392]
[1750767987088,36.0,144.06,144.0,3.47138475]
[1750767987383,35.94,144.09,144.02,3.47138475]
[1750767988289,6.9372,144.06,144.03,6.9383]
[1750767988591,6.9372,144.06,144.02,3.47138475]
[1750767988792,6.9368,144.07,144.04,6.938]
[1750767988985,35.94,144.09,144.02,3.47138475]
[1750767989387,42.8759,144.09,144.04,3.47138475]
[1750767990094,6.9355,144.1,144.07,6.9365]
[1750767990292,43.74378879,144.12,144.06,3.47138475]
[1750767990485,6.935,144.11,144.06,3.47138475]
[1750767990685,35.94,144.12,144.06,3.47138475]
[1750767991801,6.9352,144.1,144.07,6.9363]
[1750767992093,6.9352,144.1,144.06,3.47138475]
[1750767992094,35.94,144.12,144.06,3.47138475]
[1750767992391,6.9345,144.12,144.08,3.47138475]
[1750767992692,35.94,144.15,144.08,3.47138475]
[1750767992986,41.42004345,144.15,144.08,3.47138475]
[1750767993196,35.94,144.15,144.08,10.40718475]
[1750767993587,6.9347,144.12,144.09,6.9354]
[1750767993780,41.42024202,144.15,144.08,3.47138475]
[1750767993979,35.94,144.15,144.08,3.47138475]
[1750767994293,6.9338,144.13,144.1,6.9351]
[1750767994989,6.9338,144.13,144.11,6.9346]
[1750767995193,6.9335,144.14,144.11,6.9346]
[1750767995395,35.94,144.15,144.11,6.9346]
[1750767995588,41.39653612,144.16,144.11,6.9346]
[1750767995895,6.9336,144.14,144.11,6.9346]
[1750767996286,35.92,144.16,144.11,6.9346]
[1750767997093,6.9336,144.14,144.11,6.9346]
[1750767997483,5.49850741,144.15,144.11,6.9346]
[1750767997691,35.92,144.16,144.11,6.9346]
[1750767997892,5.49894231,144.15,144.11,6.9346]
[1750767998090,35.92,144.16,144.11,6.9346]
[1750767998294,6.9339,144.13,144.11,6.9346]
[1750767998593,35.92,144.16,144.12,6.9342]
[1750767998894,6.9331,144.15,144.12,3.47138475]
[1750767999295,6.9338,144.13,144.1,39.39138475]
[1750767999594,35.92,144.16,144.1,35.92]
[1750767999995,35.92,144.16,144.09,3.47138475]
[1750768000395,6.9341,144.13,144.09,3.47138475]
[1750768001086,6.9341,144.13,144.1,6.9349]
[1750768001286,6.9344,144.12,144.09,3.47138475]
[1750768001494,8.97252864,144.15,144.07,39.39138475]
[1750768001689,6.9362,144.08,144.07,35.92]
[1750768001891,6.9362,144.08,144.05,3.47138475]
[1750768002099,35.92,144.12,144.06,6.9371]
[1750768002501,6.9359,144.09,144.06,6.9371]
[1750768002698,35.92,144.12,144.05,3.47138475]
[1750768002699,35.92,144.12,144.07,6.9366]
[1750768003200,6.9357,144.09,144.07,6.9366]
[1750768004301,6.9354,144.1,144.07,6.9366]
[1750768004802,35.92,144.12,144.07,6.9366]
[1750768005401,35.92,144.12,144.08,6.9361]
[1750768005796,6.9348,144.11,144.08,6.9361]
[1750768006500,6.9352,144.1,144.08,6.9361]
[1750768008401,35.92,144.12,144.04,35.92]
[1750768008605,35.92,144.12,144.04,39.39138475]
[1750768008796,8.99881159,144.11,144.04,39.39138475]
[1750768008999,6.9369,144.07,144.05,6.9374]
[1750768009901,6.9375,144.06,144.03,2.4084]
[1750768010102,6.9375,144.06,144.02,3.47138475]
[1750768010303,6.9375,144.06,144.03,6.9381]
[1750768010501,6.9376,144.05,144.03,6.9381]
[1750768010699,3.47138475,144.07,144.0,3.47138475]
[1750768010900,41.39754628,144.06,144.01,6.9394]
[1750768011201,6.9386,144.03,144.0,3.47138475]
[1750768012202,39.33138475,144.06,143.99,2.269]
[1750768012203,6.9392,144.02,143.99,2.269]
[1750768012505,39.33138475,144.06,143.99,2.269]
[1750768012706,5.54565313,144.05,143.99,2.269]
[1750768012906,6.9388,144.03,144.0,6.9397]
[1750768013205,6.9388,144.03,143.99,2.269]
[1750768013409,6.9391,144.02,144.0,6.9399]
[1750768013707,39.33138475,144.06,143.99,2.269]
[1750768013901,5.55398421,144.05,143.99,2.269]
[1750768014207,5.55398421,144.04,144.0,6.9398]
[1750768014403,5.55398421,144.03,144.0,6.9398]
[1750768014705,6.939,144.03,144.0,6.9398]
[1750768015303,5.55464322,144.02,143.99,6.9403]
[1750768015612,39.33138475,144.06,143.99,6.9403]
[1750768015905,6.9394,144.02,143.99,6.9403]
[1750768017106,3.47138475,144.04,143.96,2.2611]
[1750768017314,13.4208607,144.03,143.95,39.33138475]
[1750768017610,6.9403,144.0,143.97,6.9411]
[1750768017805,35.86,144.02,143.95,39.33138475]
[1750768018106,5.53903951,144.01,143.95,39.33138475]
[1750768018308,6.9399,144.01,143.98,6.9407]
[1750768019805,6.94,144.0,143.98,6.9407]
[1750768020512,3.47138475,144.0,143.93,5.85438475]
[1750768020707,3.47138475,143.98,143.91,3.47138475]
[1750768020901,5.53371619,143.97,143.91,3.47138475]
[1750768021101,39.35138475,143.98,143.91,3.47138475]
[1750768021307,35.88,143.98,143.93,3.47138475]
[1750768021509,6.9417,143.97,143.94,6.9425]
[1750768021709,6.9417,143.97,143.93,3.47138475]
[1750768022303,6.9417,143.97,143.94,6.9428]
[1750768022605,6.9417,143.97,143.93,3.47138475]
[1750768022813,6.9417,143.97,143.94,6.9428]
[1750768023007,35.88,143.98,143.93,3.47138475]
[1750768023605,35.88,143.98,143.96,6.9416]
[1750768025808,35.88,144.01,143.95,3.47138475]
[1750768026313,42.8198,144.01,143.98,6.9407]
[1750768026702,35.88,144.01,143.95,3.47138475]
[1750768026912,35.88,144.01,143.97,3.47138475]
[1750768027121,35.88,144.01,143.94,6.7907]
[1750768027412,42.8197,144.01,143.98,6.9409]
[1750768028008,6.94,144.0,143.97,6.9412]
[1750768028314,35.88,144.01,143.95,3.47138475]
[1750768028810,42.8199,144.01,143.95,3.47138475]
[1750768029012,35.88,144.01,143.95,3.47138475]
[1750768029312,6.9403,144.0,143.97,6.9412]
[1750768030113,39.35138475,144.01,143.96,6.9416]
[1750768030616,39.35138475,144.01,143.95,6.9424]
[1750768031314,3.47138475,143.99,143.91,3.47138475]
[1750768031714,6.9425,143.95,143.91,3.47138475]
[1750768032012,35.88,143.97,143.92,6.9438]
[1750768032206,35.88,143.97,143.91,3.47138475]
[1750768032207,6.9433,143.94,143.91,3.47138475]
[1750768032405,6.9433,143.94,143.91,6.9441]
[1750768032604,39.35138475,143.97,143.91,6.9441]
[1750768033407,39.35138475,143.97,143.9,6.9446]
[1750768033408,6.9436,143.93,143.9,6.9446]
[1750768033716,6.9436,143.93,143.89,3.47138475]
[1750768034215,6.9431,143.94,143.91,6.9441]
[1750768034403,39.35138475,143.97,143.89,3.47138475]
[1750768034404,35.88,143.97,143.89,3.47138475]
[1750768034609,6.9418,143.97,143.94,6.9426]
[1750768034811,38.2514,143.98,143.94,6.9426]
[1750768035216,35.88,143.98,143.93,3.47138475]
[1750768036024,6.9415,143.97,143.93,3.47138475]
[1750768036318,6.9415,143.97,143.94,6.9426]
[1750768036522,35.88,143.98,143.93,3.47138475]
[1750768036922,6.942,143.96,143.93,3.47138475]
[1750768037630,6.942,143.96,143.93,10.41458475]
[1750768038122,6.942,143.96,143.94,6.9429]
[1750768038322,6.9415,143.97,143.94,6.9429]
[1750768038820,35.88,143.98,143.88,35.88]
[1750768039127,35.88,143.98,143.9,3.47138475]
[1750768039321,6.943,143.94,143.91,6.9441]
[1750768040324,6.9434,143.93,143.9,10.41598475]
[1750768040510,39.35138475,143.98,143.9,3.47138475]
[1750768041122,6.9431,143.94,143.91,6.9441]
[1750768041325,35.88,143.98,143.92,3.47138475]
[1750768041918,35.88,143.98,143.94,3.47138475]
[1750768042226,6.9407,143.99,143.96,6.9419]
[1750768043624,3.47138475,144.0,143.94,6.9427]
[1750768043923,3.47138475,144.0,143.93,5.89758475]
[1750768044130,6.9414,143.98,143.93,5.89758475]
[1750768044319,39.31138475,144.01,143.93,5.89758475]
[1750768044922,6.9418,143.97,143.94,6.9427]
[1750768045319,6.9425,143.95,143.93,2.4262]
[1750768045930,6.9421,143.96,143.93,9.3694]
[1750768047829,35.84,143.97,143.9,3.47138475]
[1750768048328,6.9427,143.95,143.92,6.9438]
[1750768049632,6.9422,143.96,143.92,3.47138475]
[1750768050325,42.7817,143.97,143.92,3.47138475]
[1750768050731,42.7817,143.97,143.94,6.9427]
[1750768050931,35.84,143.97,143.92,3.47138475]
[1750768051328,6.942,143.96,143.93,6.9431]
[1750768053026,6.942,143.96,143.94,6.9428]
[1750768053226,42.7817,143.97,143.92,3.47138475]
[1750768053936,42.7817,143.97,143.94,6.9425]
[1750768055434,6.942,143.96,143.94,6.9425]
[1750768055830,42.7817,143.97,143.94,6.9425]
[1750768056931,6.9413,143.98,143.92,3.47138475]
[1750768057131,6.9413,143.98,143.91,2.1888]
[1750768057132,6.9413,143.98,143.94,3.47138475]
[1750768057332,39.31138475,144.0,143.91,2.1888]
[1750768057533,8.39303825,143.99,143.93,3.47138475]
[1750768057727,5.47466886,143.98,143.95,6.9422]
[1750768057927,35.84,144.0,143.95,3.47138475]
[1750768058237,5.47928198,143.99,143.97,6.9414]
[1750768058436,35.84,144.0,143.97,6.9414]
[1750768058737,5.47920986,143.99,143.97,6.9414]
[1750768058940,42.7804,144.0,143.97,6.9414]
[1750768059842,35.84,144.03,143.97,3.47138475]
[1750768060029,2.92061796,144.02,143.97,3.47138475]
[1750768060229,35.84,144.03,143.97,3.47138475]
[1750768060432,6.9393,144.02,143.97,3.47138475]
[1750768060937,42.7787,144.03,144.0,6.9397]
[1750768061531,6.9383,144.04,144.01,6.9394]
[1750768061731,635.28,144.06,143.99,3.47138475]
[1750768061935,2.92002955,144.05,144.01,3.47138475]
[1750768062132,6.9379,144.05,144.01,10.41048475]
[1750768062332,6.9379,144.05,144.01,3.47138475]
[1750768062934,6.9382,144.04,144.02,6.939]
[1750768063136,6.9382,144.04,144.01,3.47138475]
[1750768063429,35.84,144.06,144.01,3.47138475]
[1750768063738,6.9379,144.05,144.02,6.9389]
[1750768067551,42.7774,144.06,144.03,6.9383]
[1750768067747,35.84,144.06,144.01,3.47138475]
[1750768068447,6.9378,144.05,144.02,6.9388]
[1750768069149,6.9382,144.04,144.01,10.41068475]
[1750768073641,6.9382,144.04,144.02,6.939]
[1750768074045,6.9382,144.04,144.01,3.47138475]
[1750768074246,6.9382,144.04,144.01,10.41068475]
[1750768075251,35.84,144.06,144.0,2.2795]
[1750768075550,39.31138475,144.06,143.99,3.47138475]
[1750768076047,6.939,144.03,144.0,6.94]
[1750768076250,6.939,144.03,143.99,3.47138475]
[1750768076851,6.939,144.03,144.0,6.9399]
[1750768077250,6.939,144.03,143.99,3.47138475]
[1750768077444,6.9384,144.04,144.01,6.9393]
[1750768077851,35.84,144.06,143.98,2.3208]
[1750768078042,39.31138475,144.06,143.99,6.9402]
[1750768078239,39.31138475,144.06,143.99,3.47138475]
[1750768079148,6.9389,144.03,143.99,10.41158475]
[1750768081248,6.9391,144.02,143.99,10.41158475]
[1750768081848,6.9388,144.03,144.0,6.94]
[1750768082847,6.9383,144.04,144.01,6.9395]
[1750768084155,6.9386,144.03,144.01,6.9395]
[1750768084460,6.9386,144.03,144.0,3.47138475]
[1750768085359,6.9386,144.03,143.98,2.3208]
[1750768085658,6.9386,144.03,144.0,3.47138475]
[1750768086159,6.9386,144.03,144.0,10.41108475]
[1750768087661,6.9391,144.02,144.0,10.41108475]
[1750768087857,2.92262164,144.05,144.0,10.41108475]
[1750768088159,39.31138475,144.06,144.0,10.41108475]
[1750768088358,6.9382,144.04,144.0,3.47138475]
[1750768088558,35.84,144.06,144.0,3.47138475]
[1750768088959,35.84,144.06,144.03,6.9383]
[1750768088960,42.7774,144.06,144.03,6.9383]
[1750768089464,35.8,144.09,144.04,3.47138475]
[1750768089866,6.9365,144.08,144.05,6.9374]
[1750768090664,42.7359,144.09,144.06,6.9369]
[1750768093368,35.8,144.09,144.02,5.70688475]
[1750768093567,35.8,144.09,144.04,3.47138475]
[1750768093766,6.9366,144.08,144.05,6.9374]
[1750768095469,42.736,144.09,144.04,3.47138475]
[1750768095667,44.2426297,144.12,144.06,3.47138475]
[1750768095864,5.51284867,144.11,144.07,6.9363]
[1750768096064,6.9355,144.1,144.07,6.9363]
[1750768096263,35.8,144.12,144.05,35.8]
[1750768096464,6.9355,144.1,144.07,6.9364]
[1750768097571,6.9355,144.1,144.08,6.9359]
[1750768098568,2.3746,144.14,144.08,3.47138475]
[1750768098770,41.54745674,144.15,144.1,3.47138475]
[1750768098971,35.8,144.15,144.1,3.47138475]
[1750768099767,6.9341,144.13,144.11,6.9347]
[1750768100269,35.8,144.15,144.12,6.9342]
[1750768100465,35.8,144.15,144.1,3.47138475]
[1750768100779,42.733,144.15,144.12,6.9339]
[1750768101075,35.8,144.18,144.12,3.47138475]
[1750768101273,5.53477553,144.17,144.12,3.47138475]
[1750768101573,35.8,144.18,144.1,3.47138475]
[1750768101773,11.93573876,144.17,144.09,39.27138475]
[1750768101965,3.47138475,144.17,144.09,39.27138475]
[1750768102675,5.56199893,144.16,144.09,39.27138475]
[1750768102874,3.47138475,144.17,144.11,6.9345]
[1750768103173,5.56203327,144.16,144.11,6.9345]
[1750768103374,6.9336,144.14,144.11,6.9345]
[1750768104671,3.47138475,144.17,144.1,6.9349]
[1750768104870,3.47138475,144.15,144.09,39.27138475]
[1750768105279,6.934,144.13,144.1,6.9348]
[1750768108079,6.9335,144.14,144.11,6.9347]
[1750768108572,35.8,144.18,144.11,6.9347]
[1750768108573,11.97283708,144.17,144.11,6.9347]
[1750768108765,6.9337,144.14,144.11,6.9347]
[1750768110069,6.9337,144.14,144.09,39.27138475]
[1750768110270,6.9331,144.15,144.09,39.27138475]
[1750768110471,6.9331,144.15,144.11,3.47138475]
[1750768110776,39.27138475,144.18,144.11,3.47138475]
[1750768111082,6.9325,144.16,144.11,3.47138475]
[1750768111580,6.9321,144.17,144.11,3.47138475]
[1750768111781,39.27138475,144.18,144.09,35.8]
[1750768111981,6.9326,144.16,144.11,3.47138475]
[1750768112781,6.9321,144.17,144.11,3.47138475]
[1750768113272,6.9321,144.17,144.14,6.9331]
[1750768115276,6.9316,144.18,144.13,3.47138475]
[1750768115474,39.23138475,144.21,144.15,3.47138475]
[1750768115675,39.23138475,144.21,144.13,35.76]
[1750768115676,39.23138475,144.21,144.16,6.932]
[1750768115876,6.9314,144.18,144.14,3.47138475]
[1750768116383,6.9314,144.18,144.15,6.9327]
[1750768117484,6.9319,144.17,144.15,6.9327]
[1750768117680,39.23138475,144.21,144.15,6.9327]
[1750768118170,6.9321,144.17,144.15,6.9327]
[1750768120983,6.9316,144.18,144.16,6.9323]
[1750768121182,39.23138475,144.21,144.14,3.47138475]
[1750768121582,6.9312,144.19,144.17,6.9316]
[1750768122185,35.76,144.21,144.17,6.9316]
[1750768122389,6.9307,144.2,144.17,6.9316]
[1750768122785,39.23138475,144.21,144.14,3.47138475]
[1750768122986,44.79301056,144.21,144.14,3.47138475]
[1750768123289,6.9321,144.17,144.15,6.9327]
[1750768123786,6.9328,144.16,144.13,45.0567]
[1750768123989,3.47138475,144.19,144.13,6.9335]
[1750768124382,6.9328,144.15,144.13,6.9335]
[1750768126183,6.9326,144.16,144.13,6.9335]
[1750768126384,6.9326,144.16,144.12,3.47138475]
[1750768127487,6.9326,144.16,144.14,6.9332]
[1750768129088,6.9321,144.17,144.15,6.9327]
[1750768129388,39.23138475,144.21,144.12,3.47138475]
[1750768129592,6.9322,144.17,144.14,6.9329]
[1750768129779,6.9322,144.17,144.12,3.47138475]
[1750768131485,35.76,144.21,144.16,3.47138475]
[1750768131689,7.88744452,144.23,144.18,3.47138475]
[1750768131992,5.57388539,144.22,144.18,3.47138475]
[1750768132190,5.57388539,144.21,144.17,3.47138475]
[1750768132388,6.9301,144.21,144.18,6.931]
[1750768132593,2.93018523,144.23,144.17,3.47138475]
[1750768132792,5.57346008,144.22,144.17,3.47138475]
[1750768132991,6.9295,144.22,144.17,3.47138475]
[1750768133178,35.7,144.24,144.17,3.47138475]
[1750768133381,6.9298,144.22,144.17,3.47138475]
[1750768133790,5.60552029,144.21,144.17,3.47138475]
[1750768133991,6.9298,144.22,144.19,6.9306]
[1750768134189,12.53552029,144.21,144.17,3.47138475]
[1750768134386,2.9320952,144.23,144.17,3.47138475]
[1750768134584,5.60552029,144.22,144.18,6.9311]
[1750768134785,35.7,144.24,144.17,3.47138475]
[1750768134786,12.53572029,144.21,144.17,3.47138475]
[1750768134981,6.9302,144.21,144.18,6.931]
[1750768135387,35.7,144.24,144.17,3.47138475]
[1750768135591,19.30809779,144.23,144.17,10.40278475]
[1750768135791,6.9306,144.2,144.17,10.40278475]
[1750768137493,6.9306,144.2,144.18,6.9313]
[1750768138498,6.9301,144.21,144.18,6.9313]
[1750768138800,4.97215764,144.23,144.19,6.9309]
[1750768139090,15.49183022,144.22,144.19,6.9309]
[1750768139397,5.6230064,144.21,144.19,6.9309]
[1750768139700,6.9297,144.22,144.19,6.9309]
[1750768139900,5.62886791,144.21,144.19,6.9309]
[1750768140198,5.62886791,144.2,144.19,6.9309]
[1750768141696,5.62803559,144.2,144.19,6.9309]
[1750768141895,6.9297,144.22,144.19,6.9309]
[1750768142197,5.62803361,144.21,144.19,6.9309]
[1750768142400,10.7967753,144.23,144.19,6.9309]